bitfinex/quotes_SOLUSD_20251216
["timestamp","ask_amount","ask_price","bid_price","bid_amount"]
[1765918497388,8.49095202,128.69,128.65,16.95277428]
[1765918497589,8.49095202,128.69,128.67,10.54153669]
[1765918498205,8.59028475,128.7,128.67,10.54153669]
[1765918499469,0.1,128.7,128.68,10.54153669]
[1765918499670,0.1,128.7,128.69,10.54153669]
[1765918500307,0.1,128.7,128.69,9.18]
[1765918500474,0.1,128.7,128.69,8.52]
[1765918500674,0.1,128.7,128.69,19.06153669]
[1765918501085,0.1,128.7,128.69,19.72153669]
[1765918501585,19.41540469,128.77,128.7,0.66]
[1765918501882,20.13540469,128.77,128.71,0.66]
[1765918502194,10.53767296,128.79,128.73,0.66]
[1765918502195,0.72,128.78,128.73,0.66]
[1765918502396,0.72,128.77,128.73,19.06153669]
[1765918502597,0.72,128.74,128.63,6.41168063]
[1765918502794,0.72,128.71,128.68,10.54153669]
[1765918503213,8.49000207,128.71,128.69,10.54153669]
[1765918503391,27.19351228,128.71,128.68,10.54153669]
[1765918503587,27.91351228,128.71,128.68,10.54153669]
[1765918504696,0.7,128.73,128.68,7.77121248]
[1765918504902,0.7,128.71,128.66,9.2]
[1765918505098,7.77000777,128.7,128.66,11.22153669]
[1765918505310,7.77000777,128.7,128.67,10.54153669]
[1765918505311,8.47000777,128.7,128.67,10.54153669]
[1765918505603,10.54153669,128.72,128.69,11.22153669]
[1765918505604,7.76880049,128.72,128.69,11.22153669]
[1765918505806,7.76759359,128.74,128.71,11.22153669]
[1765918506108,0.7,128.74,128.71,10.54153669]
[1765918506505,7.76723809,128.75,128.73,10.54153669]
[1765918506817,7.76723809,128.75,128.67,7.77171969]
[1765918506818,0.7,128.78,128.74,10.54153669]
[1765918507001,0.8,128.79,128.76,10.54153669]
[1765918507178,7.76518092,128.78,128.75,0.68]
[1765918507381,7.76518092,128.78,128.75,11.22153669]
[1765918507582,7.76518092,128.78,128.72,27.94090767]
[1765918507808,8.46518092,128.78,128.75,10.54153669]
[1765918508009,7.76518092,128.78,128.76,10.54153669]
[1765918508178,7.76518092,128.78,128.77,10.54153669]
[1765918508381,0.1,128.79,128.77,10.54153669]
[1765918508382,7.86483259,128.79,128.77,10.54153669]
[1765918509107,0.1,128.79,128.77,10.54153669]
[1765918509305,0.1,128.79,128.74,0.68]
[1765918509509,0.1,128.79,128.77,10.54153669]
[1765918509709,0.8,128.79,128.77,10.54153669]
[1765918509910,0.8,128.79,128.76,10.54153669]
[1765918510107,11.34153669,128.79,128.71,0.68]
[1765918510280,0.7,128.76,128.64,38.86644698]
[1765918510486,10.54153669,128.75,128.7,10.54153669]
[1765918510680,0.7,128.72,128.69,10.54153669]
[1765918511110,0.7,128.72,128.69,10.50872733]
[1765918511311,7.76940408,128.71,128.69,10.50872733]
[1765918511610,0.7,128.74,128.7,10.50872733]
[1765918511800,8.46759359,128.74,128.71,10.50872733]
[1765918511991,7.76759359,128.74,128.71,10.50872733]
[1765918512311,7.76759359,128.74,128.72,10.50872733]
[1765918512510,7.76759359,128.74,128.69,7.77024536]
[1765918512700,7.76759359,128.74,128.68,8.45111035]
[1765918512701,0.7,128.73,128.68,8.45111035]
[1765918512905,0.7,128.73,128.68,0.68]
[1765918513225,8.46880049,128.72,128.7,10.50872733]
[1765918513407,8.46880049,128.72,128.68,0.68]
[1765918513586,8.46880049,128.72,128.69,10.50872733]
[1765918513988,27.89080173,128.72,128.69,10.50872733]
[1765918514295,27.19080173,128.72,128.65,0.68]
[1765918514486,27.89080173,128.72,128.68,10.50872733]
[1765918514817,7.76880049,128.72,128.7,10.50872733]
[1765918515306,8.468197,128.73,128.7,10.50872733]
[1765918515508,0.7,128.72,128.69,6.46698406]
[1765918515910,0.7,128.72,128.66,7.77228248]
[1765918516119,0.7,128.72,128.68,6.46698406]
[1765918516611,0.7,128.72,128.69,6.46698406]
[1765918517001,27.8886895,128.73,128.69,7.14698406]
[1765918517316,7.768197,128.73,128.7,6.46698406]
[1765918517517,8.52,128.76,128.72,6.46698406]
[1765918517702,7.76578395,128.77,128.75,6.46698406]
[1765918517900,7.76578395,128.77,128.74,6.46698406]
[1765918518200,7.76578395,128.77,128.68,27.19925395]
[1765918518201,0.7,128.76,128.71,9.2]
[1765918518512,27.88024383,128.77,128.73,6.46698406]
[1765918519295,7.76578395,128.77,128.74,7.14698406]
[1765918519602,7.76578395,128.77,128.75,6.46698406]
[1765918519804,8.46578395,128.77,128.73,7.76799726]
[1765918520102,8.46542908,128.78,128.74,7.14698406]
[1765918520808,7.76542908,128.78,128.76,6.46698406]
[1765918521006,7.76542908,128.78,128.75,6.46698406]
[1765918521007,8.46542908,128.78,128.75,6.46698406]
[1765918522713,7.76542908,128.78,128.75,7.14698406]
[1765918523110,7.76542908,128.78,128.75,6.46698406]
[1765918523921,0.7,128.77,128.73,6.46698406]
[1765918524106,0.7,128.76,128.72,7.14698406]
[1765918524301,0.7,128.75,128.71,7.76914602]
[1765918524489,7.76542908,128.78,128.74,6.46698406]
[1765918524691,8.46542908,128.78,128.75,6.46698406]
[1765918524898,7.86474712,128.79,128.75,6.46698406]
[1765918525125,0.1,128.79,128.77,0.68]
[1765918525325,0.1,128.79,128.77,7.14698406]
[1765918525692,0.1,128.79,128.78,6.46698406]
[1765918526005,0.1,128.79,128.78,15.66698406]
[1765918526197,0.1,128.79,128.78,9.2]
[1765918526403,0.1,128.79,128.78,8.52]
[1765918526607,0.1,128.79,128.78,15.66698406]
[1765918527127,0.1,128.79,128.78,23.43216498]
[1765918529426,3.20846778,128.83,128.79,0.68]
[1765918529601,3.20846778,128.83,128.82,7.14698406]
[1765918529927,3.20846778,128.83,128.82,15.66698406]
[1765918530830,3.20846778,128.83,128.82,23.42975381]
[1765918531525,0.1,128.84,128.82,42.1566782]
[1765918531718,0.1,128.84,128.83,7.14698406]
[1765918532801,0.1,128.84,128.83,14.90915125]
[1765918534006,0.1,128.84,128.83,14.98698406]
[1765918534304,0.76,128.84,128.8,7.76389802]
[1765918534510,0.76,128.84,128.79,0.69]
[1765918534813,0.76,128.84,128.81,6.46698406]
[1765918535016,0.76,128.84,128.79,9.21]
[1765918535017,0.71,128.83,128.8,6.46698406]
[1765918535829,7.76276975,128.82,128.8,6.46698406]
[1765918536526,8.47276975,128.82,128.8,6.46698406]
[1765918537521,27.16969414,128.82,128.79,8.52]
[1765918537726,0.71,128.8,128.77,6.46698406]
[1765918538234,0.71,128.8,128.78,6.46698406]
[1765918538440,7.76276975,128.82,128.79,6.46698406]
[1765918538737,7.76276975,128.82,128.78,6.46698406]
[1765918538738,0.71,128.81,128.78,6.46698406]
[1765918538928,8.47276975,128.82,128.78,7.14698406]
[1765918539243,0.71,128.81,128.78,6.46698406]
[1765918539705,8.47370837,128.81,128.78,6.46698406]
[1765918540341,8.47370837,128.81,128.78,14.98698406]
[1765918540507,7.76370837,128.81,128.79,6.46698406]
[1765918540708,8.47370837,128.81,128.79,6.46698406]
[1765918541132,0.71,128.8,128.78,8.52]
[1765918541331,0.71,128.8,128.77,6.46698406]
[1765918541844,7.76370837,128.81,128.77,6.46698406]
[1765918541845,8.47457799,128.79,128.77,6.46698406]
[1765918542734,8.47414716,128.8,128.78,6.46698406]
[1765918542940,6.46698406,128.81,128.76,14.98698406]
[1765918543238,0.71,128.8,128.76,14.98698406]
[1765918543812,8.47457799,128.79,128.76,14.98698406]
[1765918544212,8.47457799,128.79,128.76,6.46698406]
[1765918544447,0.71,128.78,128.76,6.46698406]
[1765918544650,0.71,128.78,128.75,14.98698406]
[1765918545450,0.71,128.78,128.76,6.46698406]
[1765918546150,8.47558471,128.78,128.76,6.46698406]
[1765918548226,8.47558471,128.78,128.75,8.52]
[1765918548632,8.47558471,128.78,128.76,6.46698406]
[1765918549039,8.47558471,128.78,128.72,19.42125869]
[1765918549040,0.71,128.77,128.73,6.46698406]
[1765918549249,6.46698406,128.77,128.73,6.46698406]
[1765918549429,0.71,128.76,128.73,6.46698406]
[1765918549926,0.71,128.76,128.72,14.98698406]
[1765918550126,7.76699029,128.75,128.72,14.98698406]
[1765918550440,8.47699029,128.75,128.72,14.98698406]
[1765918550771,19.41295232,128.78,128.74,7.14698406]
[1765918550772,0.71,128.78,128.74,7.14698406]
[1765918550968,0.71,128.78,128.75,6.46698406]
[1765918551260,25.87784175,128.8,128.76,6.46698406]
[1765918551261,0.71,128.79,128.76,6.46698406]
[1765918551572,0.71,128.79,128.75,6.46698406]
[1765918551774,8.47485808,128.79,128.75,6.46698406]
[1765918552047,8.47485808,128.79,128.75,15.66698406]
[1765918552655,0.71,128.78,128.75,15.66698406]
[1765918552859,0.71,128.78,128.75,14.98698406]
[1765918553162,0.71,128.78,128.75,8.52]
[1765918554049,0.71,128.78,128.75,14.98698406]
[1765918554566,8.47564703,128.78,128.75,14.98698406]
[1765918554754,166.8,128.84,128.77,7.14698406]
[1765918554952,0.71,128.83,128.79,6.46698406]
[1765918556265,0.71,128.83,128.8,6.46698406]
[1765918556266,0.71,128.82,128.8,6.46698406]
[1765918556462,7.76216719,128.83,128.8,6.46698406]
[1765918556648,7.76216719,128.83,128.79,7.76454947]
[1765918556649,0.1,128.84,128.83,0.68]
[1765918556848,0.1,128.84,128.83,7.14698406]
[1765918558463,0.1,128.84,128.83,0.68]
[1765918558766,0.1,128.84,128.83,6.46698406]
[1765918559436,0.1,128.84,128.83,22.74915125]
[1765918560643,0.1,128.84,128.82,0.68]
[1765918560838,0.1,128.84,128.78,8.44502541]
[1765918560839,0.71,128.83,128.78,8.44502541]
[1765918561138,0.1,128.84,128.82,6.46698406]
[1765918561139,0.81,128.84,128.82,6.46698406]
[1765918561345,0.81,128.84,128.81,6.46698406]
[1765918562359,8.57169914,128.84,128.81,6.46698406]
[1765918563071,0.71,128.83,128.81,6.46698406]
[1765918564070,0.71,128.83,128.8,16.28391122]
[1765918564270,0.71,128.83,128.79,8.44434171]
[1765918564453,8.47266152,128.83,128.81,6.46698406]
[1765918564854,8.47266152,128.83,128.8,8.52]
[1765918565070,0.1,128.84,128.82,6.46698406]
[1765918565273,8.43774487,128.91,128.89,6.46698406]
[1765918565450,0.68,128.9,128.88,6.46698406]
[1765918565779,0.68,128.9,128.87,6.46698406]
[1765918566379,8.43814184,128.9,128.89,6.46698406]
[1765918566582,7.75814184,128.9,128.89,6.46698406]
[1765918566749,8.43740708,128.91,128.89,6.46698406]
[1765918567093,7.85695127,128.92,128.9,6.46698406]
[1765918567281,8.53695127,128.92,128.9,6.46698406]
[1765918567670,8.53695127,128.92,128.91,6.46698406]
[1765918568099,0.1,128.92,128.91,6.46698406]
[1765918568392,0.1,128.96,128.91,6.46698406]
[1765918568393,0.1,128.96,128.95,0.7]
[1765918568598,0.1,128.96,128.95,15.68698406]
[1765918569088,0.68,129.04,129.0,7.16698406]
[1765918569396,0.68,129.06,129.01,15.68698406]
[1765918570094,7.74932404,129.05,129.01,14.98698406]
[1765918570473,0.68,129.01,128.96,7.75421576]
[1765918570677,0.68,129.01,128.98,6.46698406]
[1765918570882,6.46698406,129.01,128.91,19.39273826]
[1765918571060,6.46698406,129.01,128.96,6.46698406]
[1765918571061,0.68,129.0,128.96,6.46698406]
[1765918571258,0.68,129.0,128.96,14.96698406]
[1765918572191,8.43213673,129.0,128.96,14.96698406]
[1765918572688,0.68,129.0,128.97,6.46698406]
[1765918574376,0.19363546,129.02,129.01,10.43767296]
[1765918574589,0.1,129.05,129.02,0.7]
[1765918574768,0.1,129.05,129.04,7.16698406]
[1765918574965,7.14698406,129.12,129.04,15.61698406]
[1765918575182,0.68,129.11,129.06,6.46698406]
[1765918575475,0.68,129.11,129.07,6.46698406]
[1765918575875,0.68,129.11,129.05,8.5]
[1765918576181,0.68,129.09,129.07,6.46698406]
[1765918576388,0.68,129.09,129.05,8.5]
[1765918576389,0.68,129.09,129.06,14.96698406]
[1765918576707,0.68,129.09,129.05,6.46698406]
[1765918576876,0.68,129.09,129.05,14.96698406]
[1765918577401,0.68,129.09,129.05,18.94884256]
[1765918577575,0.68,129.09,129.06,10.44884256]
[1765918578099,8.42655669,129.09,129.06,10.44884256]
[1765918578277,7.74655669,129.09,129.06,10.44884256]
[1765918578468,7.74655669,129.09,129.05,10.44884256]
[1765918578668,0.68,129.08,129.05,10.44884256]
[1765918578868,0.68,129.08,129.03,8.39995149]
[1765918579087,0.68,129.08,129.05,10.44884256]
[1765918579892,0.68,129.07,129.03,10.44884256]
[1765918580088,0.68,129.07,128.99,10.43767296]
[1765918580089,10.44884256,129.04,128.99,10.44884256]
[1765918580293,0.68,129.01,128.95,8.5]
[1765918580493,10.44884256,129.0,128.95,10.44884256]
[1765918580699,0.68,128.99,128.95,10.44884256]
[1765918581401,0.68,128.99,128.96,10.44884256]
[1765918581707,0.68,129.03,128.98,10.44884256]
[1765918581876,0.68,129.03,128.99,10.44884256]
[1765918582073,0.68,129.03,128.99,18.20126817]
[1765918582279,0.68,129.03,128.99,7.75242561]
[1765918582490,18.87854121,129.04,128.99,18.85126817]
[1765918582807,8.42969865,129.04,129.0,10.44884256]
[1765918583210,0.68,129.03,129.0,10.44884256]
[1765918583378,0.68,129.03,128.98,16.90296352]
[1765918583582,0.68,129.02,128.98,8.5]
[1765918583783,0.68,129.02,128.95,20.03678954]
[1765918583996,7.7513371,129.01,128.97,18.21166852]
[1765918584179,0.68,129.0,128.95,7.75452494]
[1765918584377,0.68,129.0,128.96,10.45803037]
[1765918584577,0.68,129.0,128.96,18.21236453]
[1765918585112,0.68,129.01,128.98,10.45803037]
[1765918585405,8.43089609,129.02,128.98,10.45803037]
[1765918586376,8.43175092,129.01,128.98,10.45803037]
[1765918586579,8.43175092,129.01,128.97,10.45803037]
[1765918586987,8.43175092,129.01,128.97,18.21167743]
[1765918587409,7.75078451,129.02,128.98,18.21101798]
[1765918587583,0.68,129.02,128.95,0.65]
[1765918587788,0.68,129.01,128.97,10.45803037]
[1765918588185,0.68,129.0,128.96,10.45803037]
[1765918588509,7.75228142,129.0,128.96,18.2122964]
[1765918588822,0.68,128.97,128.93,10.45803037]
[1765918589186,0.68,128.97,128.94,7.75506929]
[1765918589407,0.68,128.98,128.94,10.45803037]
[1765918589710,8.43228142,129.0,128.96,10.45803037]
[1765918589890,8.43228142,129.0,128.96,18.21215951]
[1765918590881,0.68,128.99,128.95,18.21279396]
[1765918591209,0.68,128.99,128.95,7.75476359]
[1765918591917,0.68,128.98,128.94,18.95803037]
[1765918592413,8.43341345,128.98,128.94,26.71352017]
[1765918593218,0.68,128.97,128.93,18.21393697]
[1765918594014,0.68,128.97,128.94,18.21347981]
[1765918595702,8.43390739,128.97,128.93,18.21396023]
[1765918597103,8.43390739,128.97,128.93,10.45803037]
[1765918597104,27.84826034,128.97,128.93,10.45803037]
[1765918597306,10.45803037,128.94,128.87,7.75972631]
[1765918597505,35.63826034,128.97,128.84,7.76139182]
[1765918597506,10.45803037,128.89,128.84,7.76139182]
[1765918597726,0.71,128.88,128.84,18.21942219]
[1765918598018,0.71,128.88,128.85,10.45803037]
[1765918598910,0.71,128.99,128.88,8.80994492]
[1765918599228,0.71,128.97,128.91,0.65]
[1765918599527,0.71,128.95,128.91,10.45803037]
[1765918599830,0.71,128.96,128.92,10.45803037]
[1765918600205,10.45803037,128.96,128.89,9.15]
[1765918600510,0.71,128.95,128.91,10.45803037]
[1765918601009,8.4654846,128.95,128.91,10.45803037]
[1765918601205,8.4654846,128.95,128.91,18.21522332]
[1765918601523,7.7554846,128.95,128.9,7.75785545]
[1765918601831,0.71,128.93,128.89,10.45803037]
[1765918602034,0.71,128.93,128.89,18.21651344]
[1765918602322,0.71,128.92,128.88,18.21670145]
[1765918603325,0.71,128.96,128.91,10.45803037]
[1765918603520,0.71,128.96,128.92,10.45803037]
[1765918604505,8.46472954,128.96,128.92,18.21470973]
[1765918604833,0.71,128.98,128.94,10.45803037]
[1765918605024,0.71,128.98,128.95,10.45803037]
[1765918605224,0.71,128.98,128.92,8.40657356]
[1765918605416,0.71,128.98,128.94,10.45803037]
[1765918605826,0.71,128.94,128.86,0.65]
[1765918606020,10.45803037,128.95,128.86,0.65]
[1765918606021,10.45803037,128.91,128.86,18.2181286]
[1765918606208,10.45803037,128.91,128.85,7.76060714]
[1765918606209,0.71,128.89,128.85,7.76060714]
[1765918606723,10.45803037,128.89,128.84,7.76138072]
[1765918606924,0.71,128.88,128.84,7.76138072]
[1765918607435,0.71,128.87,128.84,7.76138072]
[1765918607835,8.4691558,128.88,128.84,7.76138072]
[1765918608019,0.71,128.87,128.84,7.76138072]
[1765918608345,10.45803037,128.85,128.83,0.2]
[1765918608634,0.71,128.84,128.83,0.2]
[1765918609217,0.71,128.87,128.83,18.42019756]
[1765918609533,0.71,128.89,128.85,10.45803037]
[1765918609708,8.46810859,128.9,128.86,10.45803037]
[1765918609909,7.75810859,128.9,128.86,10.45803037]
[1765918610206,0.71,128.89,128.86,18.21832433]
[1765918611131,0.71,128.9,128.87,10.45803037]
[1765918612031,0.71,128.9,128.86,18.21832433]
[1765918613407,29.85073593,128.92,128.86,18.21832433]
[1765918613614,10.45803037,128.9,128.86,7.76029396]
[1765918613827,0.71,128.89,128.86,7.76029396]
[1765918616042,0.71,128.89,128.86,18.21832433]
[1765918616532,0.71,128.9,128.86,18.21832433]
[1765918616935,8.46756112,128.91,128.86,18.86832433]
[1765918617136,0.71,128.91,128.87,10.45803037]
[1765918617314,0.71,128.9,128.86,27.16119416]
[1765918617522,0.71,128.9,128.86,37.61922453]
[1765918617944,336.89999999,128.98,128.9,0.65]
[1765918617945,0.71,128.98,128.9,0.65]
[1765918618116,0.71,129.02,128.97,10.45803037]
[1765918618317,0.71,129.01,128.97,10.45803037]
[1765918618520,0.71,129.0,128.97,18.21176836]
[1765918618725,0.71,129.0,128.96,26.71216164]
[1765918620236,8.46198179,129.0,128.96,26.71216164]
[1765918620645,18.21001216,129.0,128.95,7.75447018]
[1765918620851,0.71,128.98,128.94,18.95803037]
[1765918621345,0.71,128.97,128.94,8.5]
[1765918621859,0.71,128.99,128.95,10.45803037]
[1765918622037,0.71,128.99,128.96,10.45803037]
[1765918622538,0.71,128.99,128.96,18.2123308]
[1765918622742,8.46255011,128.99,128.96,10.45803037]
[1765918623243,10.45803037,128.98,128.89,0.65]
[1765918623438,0.71,128.98,128.92,10.45803037]
[1765918623635,0.71,128.97,128.93,18.95803037]
[1765918624359,0.72,128.96,128.93,10.45803037]
[1765918624560,10.45803037,128.96,128.91,7.75714108]
[1765918624863,0.72,128.95,128.91,26.71517145]
[1765918625238,0.72,128.95,128.89,7.7585039]
[1765918625442,0.72,128.94,128.9,10.45803037]
[1765918625643,0.72,128.93,128.89,18.21653427]
[1765918625842,0.72,128.93,128.9,18.215977]
[1765918626043,0.72,128.93,128.9,7.75794663]
[1765918626239,0.72,128.96,128.91,10.45803037]
[1765918626445,0.72,128.95,128.91,10.45803037]
[1765918627442,0.72,128.95,128.92,10.45803037]
[1765918627638,7.75431525,128.97,128.93,10.45803037]
[1765918627843,28.19211893,128.99,128.95,10.45803037]
[1765918627844,0.72,128.99,128.95,10.45803037]
[1765918628749,0.72,128.99,128.94,18.95803037]
[1765918628964,8.47314002,128.98,128.94,18.95803037]
[1765918629265,8.47314002,128.98,128.92,0.65]
[1765918629266,0.72,128.97,128.92,18.2146555]
[1765918629565,18.21117039,128.98,128.91,7.75730914]
[1765918629566,11.17803037,128.95,128.91,7.75730914]
[1765918629748,11.17803037,128.95,128.87,10.43767296]
[1765918629749,10.45803037,128.92,128.87,10.45803037]
[1765918629947,0.72,128.91,128.87,18.21757294]
[1765918630244,0.72,128.91,128.87,10.45803037]
[1765918630559,0.72,128.91,128.88,7.75913711]
[1765918630890,8.47744849,128.91,128.87,18.21754488]
[1765918631260,8.47744849,128.91,128.87,7.75951451]
[1765918631469,8.47744849,128.91,128.87,18.21754488]
[1765918632064,0.72,128.93,128.89,10.45803037]
[1765918632376,8.47554521,128.94,128.9,10.45803037]
[1765918632666,0.72,128.93,128.89,18.95803037]
[1765918632845,0.72,128.93,128.9,10.45803037]
[1765918633044,0.72,128.92,128.88,18.21705827]
[1765918633243,0.72,128.89,128.85,10.45803037]
[1765918633660,0.72,128.89,128.85,18.2185727]
[1765918634771,0.72,128.89,128.86,18.21833489]
[1765918635666,8.47867874,128.89,128.85,18.21851179]
[1765918635988,8.47867874,128.89,128.85,18.21881118]
[1765918637377,8.47867874,128.89,128.86,14.20980489]
[1765918637578,8.47867874,128.89,128.86,6.44945526]
[1765918637781,0.72,128.88,128.85,14.21016754]
[1765918638079,0.72,128.88,128.86,7.76028852]
[1765918638659,0.72,128.88,128.86,14.20974378]
[1765918639086,0.72,128.88,128.83,28.75450092]
[1765918639291,0.72,128.88,128.84,6.44945526]
[1765918639588,0.72,128.87,128.83,22.91125258]
[1765918639757,8.47978651,128.87,128.83,22.91125258]
[1765918640378,8.47978651,128.87,128.83,14.41125258]
[1765918640576,19.39381935,128.91,128.83,7.96179732]
[1765918640758,0.72,128.92,128.89,6.44945526]
[1765918640965,0.72,128.92,128.9,6.44945526]
[1765918641285,0.72,128.92,128.89,6.44945526]
[1765918641859,0.72,128.92,128.87,8.5]
[1765918641860,0.72,128.91,128.87,8.5]
[1765918642060,14.20620363,128.92,128.86,14.20944736]
[1765918642061,0.72,128.9,128.86,14.20944736]
[1765918642869,0.72,128.9,128.84,27.90332681]
[1765918643066,0.72,128.91,128.89,6.44945526]
[1765918643294,0.72,128.93,128.89,7.75851532]
[1765918643790,0.72,128.93,128.9,6.44945526]
[1765918644390,0.72,128.93,128.91,6.44945526]
[1765918645087,7.75570006,128.94,128.92,6.44945526]
[1765918645287,8.4752157,128.95,128.92,6.44945526]
[1765918645471,0.72,128.94,128.92,6.44945526]
[1765918645866,0.72,128.94,128.91,6.44945526]
[1765918646269,8.47614674,128.93,128.9,6.44945526]
[1765918646575,8.47614674,128.93,128.91,6.44945526]
[1765918646883,25.8368147,128.95,128.92,6.44945526]
[1765918646884,8.47576833,128.94,128.92,6.44945526]
[1765918647076,0.72,128.95,128.93,6.44945526]
[1765918647268,8.47452527,128.96,128.93,6.44945526]
[1765918647686,27.86038134,128.96,128.93,6.44945526]
[1765918648174,0.72,128.95,128.93,6.44945526]
[1765918649384,8.47538367,128.95,128.93,6.44945526]
[1765918650478,0.72,128.94,128.87,19.39863588]
[1765918650795,0.72,128.92,128.86,9.15]
[1765918650992,0.72,128.92,128.88,6.44945526]
[1765918651197,0.72,128.9,128.86,6.44945526]
[1765918651488,0.72,128.9,128.83,0.85]
[1765918651489,6.44945526,128.9,128.83,0.85]
[1765918651670,0.72,128.89,128.85,6.44945526]
[1765918652269,0.72,128.91,128.87,6.44945526]
[1765918652467,6.44945526,128.89,128.85,6.44945526]
[1765918652793,0.72,128.88,128.85,6.44945526]
[1765918653581,8.47970397,128.88,128.85,6.44945526]
[1765918653893,20.09487975,128.9,128.86,6.44945526]
[1765918654092,0.7,128.89,128.86,6.44945526]
[1765918654292,0.7,128.89,128.87,6.44945526]
[1765918654495,0.7,128.89,128.87,6.44878044]
[1765918654678,0.7,128.89,128.84,0.65]
[1765918654882,0.7,128.89,128.87,6.44878044]
[1765918655081,0.7,128.89,128.84,0.65]
[1765918655283,8.45879378,128.89,128.86,6.44878044]
[1765918655799,8.45879378,128.89,128.84,8.41136057]
[1765918655973,8.45879378,128.89,128.86,6.44878044]
[1765918657914,7.75879378,128.89,128.87,6.44878044]
[1765918658116,8.46879378,128.89,128.87,6.44878044]
[1765918658302,8.46879378,128.89,128.86,6.44878044]
[1765918659095,8.46879378,128.89,128.85,0.65]
[1765918659296,8.46879378,128.89,128.87,6.44878044]
[1765918659493,7.75811554,128.9,128.87,6.44878044]
[1765918659714,0.71,128.92,128.89,6.44878044]
[1765918659917,7.75614674,128.93,128.91,6.44878044]
[1765918660409,19.38679075,128.96,128.87,8.5]
[1765918660587,20.09679075,128.96,128.93,6.44878044]
[1765918660927,0.71,128.95,128.93,6.44878044]
[1765918661287,8.46504303,128.95,128.91,8.40735008]
[1765918661495,0.71,128.94,128.91,6.44878044]
[1765918662507,0.71,128.94,128.9,8.40792296]
[1765918662700,0.71,128.94,128.91,6.44878044]
[1765918662903,0.71,128.94,128.89,16.25833463]
[1765918663213,8.46610738,128.94,128.91,6.44878044]
[1765918663788,8.46610738,128.94,128.92,6.44878044]
[1765918664813,0.71,128.94,128.86,19.40062999]
[1765918665116,0.71,128.94,128.92,6.44878044]
[1765918665316,27.85230321,128.95,128.91,7.75731867]
[1765918665490,27.85230321,128.95,128.92,6.44878044]
[1765918665491,27.14230321,128.95,128.92,6.44878044]
[1765918665820,0.71,128.94,128.92,6.44878044]
[1765918666713,7.75494377,128.95,128.93,6.44878044]
[1765918666920,19.3849147,128.97,128.91,8.4069413]
[1765918666921,27.84865588,128.97,128.91,8.4069413]
[1765918667090,0.71,128.96,128.93,6.44878044]
[1765918669188,7.75494377,128.95,128.93,6.44878044]
[1765918670718,0.71,128.97,128.94,6.44878044]
[1765918670937,7.75314002,128.98,128.96,6.44878044]
[1765918671296,7.75314002,128.98,128.94,8.40526599]
[1765918671532,0.71,128.98,128.95,7.75455283]
[1765918671692,0.71,128.98,128.95,6.44878044]
[1765918671892,6.44878044,128.98,128.94,6.44878044]
[1765918672118,6.44878044,128.97,128.93,6.44878044]
[1765918672318,27.13409126,128.99,128.91,16.90723141]
[1765918672319,0.71,128.96,128.91,16.90723141]
[1765918672495,8.5,128.98,128.94,6.44878044]
[1765918672696,8.5,128.98,128.88,16.8864534]
[1765918672697,0.71,128.97,128.88,16.8864534]
[1765918672902,0.71,128.96,128.92,6.44878044]
[1765918673222,7.75494377,128.95,128.93,6.44878044]
[1765918673621,19.38237697,128.99,128.94,7.09878044]
[1765918673918,19.38237697,128.99,128.96,6.44878044]
[1765918674124,20.09237697,128.99,128.96,6.44878044]
[1765918674714,20.09237697,128.99,128.95,6.44878044]
[1765918674898,0.71,128.98,128.94,14.20419117]
[1765918675796,8.46352037,128.98,128.94,14.20419117]
[1765918676824,8.46352037,128.98,128.95,0.332128]
[1765918679204,6.44878044,128.97,128.95,0.332128]
[1765918679510,7.15878044,128.96,128.95,0.332128]
[1765918680304,7.15878044,128.96,128.91,14.85611777]
[1765918680629,7.75494377,128.95,128.91,14.85611777]
[1765918681000,7.75494377,128.95,128.88,10.43767296]
[1765918681001,6.44878044,128.94,128.88,10.43767296]
[1765918681202,6.44878044,128.92,128.87,14.85823382]
[1765918681415,6.44878044,128.92,128.87,8.40955461]
[1765918681726,6.44878044,128.92,128.86,8.5]